fUSD/lending_fUSD_20240624
["ID","MTS","AMOUNT","RATE_DAILY","PERIOD"]
[330259779,1719214265240,-500.0,0.00019452,4]
[330259780,1719214265250,-151.0,0.00019452,2]
[330259781,1719214265260,-51483.53,0.00019452,4]
[330259782,1719214265272,-500.0,0.00019452,4]
[330259783,1719214265281,-500.0,0.00019452,4]
[330259784,1719214265291,-500.0,0.00019452,4]
[330259785,1719214265300,-260.48229426,0.00019452,4]
[330259786,1719214265311,-151.0,0.00019452,2]
[330259787,1719214265321,-151.0,0.00019452,2]
[330259788,1719214265330,-500.0,0.00019452,4]
[330259789,1719214265340,-34800.51,0.00019452,4]
[330259790,1719214265350,-500.0,0.00019452,4]
[330259791,1719214265360,-151.0,0.00019452,2]
[330259792,1719214265370,-4567.01,0.00019452,4]
[330259793,1719214265380,-6749.81,0.00019452,4]
[330259794,1719214265389,-500.0,0.00019452,4]
[330259795,1719214265399,-5105.2,0.00019452,4]
[330259796,1719214265409,-500.0,0.00019452,4]
[330259797,1719214265419,-500.0,0.00019452,4]
[330259798,1719214265429,-234.81558231,0.00019452,4]
[330259799,1719214265439,-500.0,0.00019452,4]
[330259800,1719214265449,-500.0,0.00019452,4]
[330259801,1719214265459,-644.74,0.00019452,4]
[330259802,1719214265468,-500.0,0.00019452,4]
[330259803,1719214265478,-500.0,0.00019452,4]
[330259804,1719214265488,-510.85,0.00019452,4]
[330259805,1719214265497,-1219.98,0.00019452,4]
[330259806,1719214265507,-500.0,0.00019452,4]
[330259807,1719214265519,-500.0,0.00019452,4]
[330259808,1719214265532,-1000.0,0.00019452,4]
[330259809,1719214265542,-907.22,0.00019452,4]
[330259810,1719214265552,-2994.74,0.00019452,4]
[330259811,1719214265561,-500.0,0.00019452,4]
[330259812,1719214265572,-500.0,0.00019452,4]
[330259813,1719214265581,-500.0,0.00019452,4]
[330259814,1719214265592,-500.0,0.00019452,4]
[330259815,1719214265603,-3411.07,0.00019452,4]
[330259816,1719214265616,-500.0,0.00019452,4]
[330259817,1719214265626,-500.0,0.00019452,4]
[330259818,1719214265635,-500.0,0.00019452,4]
[330259819,1719214265646,-500.0,0.00019452,4]
[330259820,1719214265656,-1945.6,0.00019452,4]
[330259821,1719214265666,-500.0,0.00019452,4]
[330259822,1719214265676,-500.0,0.00019452,4]
[330259823,1719214265685,-4149.12,0.00019452,4]
[330259824,1719214265697,-500.0,0.00019452,4]
[330259825,1719214265706,-1616.06,0.00019452,4]
[330259826,1719214265716,-571.69,0.00019452,4]
[330259827,1719214265726,-4933.56,0.00019452,4]
[330259828,1719214265736,-887.92,0.00019452,4]
[330259829,1719214265746,-275.6219057,0.00019452,4]
[330259830,1719214265755,-229.264516,0.00019452,2]
[330259831,1719214265765,-229.264516,0.00019452,2]
[330259832,1719214265780,-500.0,0.00019452,4]
[330259833,1719214265790,-518.74726688,0.00019452,4]
[330259834,1719214265799,-500.0,0.00019452,4]
[330259835,1719214265809,-2530.75,0.00019452,4]
[330259836,1719214265819,-229.264516,0.00019452,2]
[330259837,1719214265830,-2643.82,0.00019452,4]
[330259838,1719214265840,-229.264516,0.00019452,2]
[330259839,1719214265849,-500.0,0.00019452,4]
[330259840,1719214265859,-547.62,0.00019452,4]
[330259841,1719214265869,-500.0,0.00019452,4]
[330259842,1719214265878,-151.0,0.00019452,2]
[330259843,1719214265888,-500.0,0.00019452,4]
[330259844,1719214265898,-296.376934,0.00019452,2]
[330259845,1719214265907,-700.46,0.00019452,4]
[330259846,1719214265917,-151.0,0.00019452,2]
[330259847,1719214265927,-228.85985,0.00019452,2]
[330259848,1719214265936,-410.36,0.00019452,4]
[330259849,1719214265946,-2119.33,0.00019452,4]
[330259850,1719214265955,-500.0,0.00019452,4]
[330259851,1719214265965,-807.64,0.00019452,4]
[330259852,1719214265975,-6552.44,0.00019452,4]
[330259853,1719214265984,-500.0,0.00019452,4]
[330259854,1719214265994,-1255.88,0.00019452,4]
[330259855,1719214266003,-500.0,0.00019452,4]
[330259856,1719214266013,-5199.55,0.00019452,4]
[330259857,1719214266025,-500.0,0.00019452,4]
[330259858,1719214266035,-500.0,0.00019452,4]
[330259859,1719214266045,-500.0,0.00019452,4]
[330259860,1719214266054,-500.0,0.00019452,4]
[330259861,1719214266064,-5313.84,0.00019452,4]
[330259862,1719214266073,-10226.28,0.00019452,4]
[330259863,1719214266083,-500.0,0.00019452,4]
[330259864,1719214266093,-151.0,0.00019452,2]
[330259865,1719214266102,-9675.59,0.00019452,4]
[330259866,1719214266112,-190.832726,0.00019452,2]
[330259867,1719214266122,-500.0,0.00019452,4]
[330259868,1719214266131,-1578.26,0.00019452,4]
[330259869,1719214266141,-500.0,0.00019452,4]
[330259870,1719214266150,-151.0,0.00019452,2]
[330259871,1719214266160,-151.0,0.00019452,2]
[330259872,1719214266169,-233.18,0.00019452,4]
[330259873,1719214266179,-1515.67,0.00019452,4]
[330259874,1719214266189,-2304.39,0.00019452,4]
[330259875,1719214266198,-500.0,0.00019452,4]
[330259876,1719214266208,-500.0,0.00019452,4]
[330259877,1719214266217,-192.44,0.00019452,4]
[330259878,1719214266227,-860.22,0.00019452,4]
[330259879,1719214266236,-500.0,0.00019452,4]
[330259880,1719214266246,-1413.93,0.00019452,4]
[330259881,1719214266256,-2577.54,0.00019452,4]
[330259882,1719214266266,-500.0,0.00019452,4]
[330259883,1719214266276,-500.0,0.00019452,4]
[330259884,1719214266285,-2480.87,0.00019452,4]
[330259885,1719214266295,-3485.47,0.00019452,4]
[330259886,1719214266304,-500.0,0.00019452,4]
[330259887,1719214266314,-500.0,0.00019452,4]
[330259888,1719214266324,-500.0,0.00019452,4]
[330259889,1719214266333,-1675.26,0.00019452,4]
[330259890,1719214266343,-500.0,0.00019452,4]
[330259891,1719214266352,-6936.84,0.00019452,4]
[330259892,1719214266362,-1833.59,0.00019452,4]
[330259893,1719214266371,-151.0,0.00019452,2]
[330259894,1719214266381,-500.0,0.00019452,4]
[330259895,1719214266390,-151.0,0.00019452,2]
[330259896,1719214266400,-500.0,0.00019452,4]
[330259897,1719214266410,-978.19,0.00019452,4]
[330259898,1719214266419,-500.0,0.00019452,4]
[330259899,1719214266429,-906.01,0.00019452,4]
[330259900,1719214266439,-500.0,0.00019452,4]
[330259901,1719214266449,-500.0,0.00019452,4]
[330259902,1719214266458,-500.0,0.00019452,4]
[330259903,1719214266468,-1148.69,0.00019452,4]
[330259904,1719214266478,-301.39757,0.00019452,2]
[330259905,1719214266487,-1282.27,0.00019452,4]
[330259906,1719214266497,-5805.71,0.00019452,4]
[330259907,1719214266507,-3390.41,0.00019452,4]
[330259908,1719214266520,-500.0,0.00019452,4]
[330259909,1719214266530,-500.0,0.00019452,4]
[330259910,1719214266539,-500.0,0.00019452,4]
[330259911,1719214266549,-500.0,0.00019452,4]
[330259912,1719214266559,-4960.34,0.00019452,4]
[330259913,1719214266570,-3724.94,0.00019452,4]
[330259914,1719214266579,-500.0,0.00019452,4]
[330259915,1719214266590,-631.73,0.00019452,4]
[330259916,1719214266600,-2618.38,0.00019452,4]
[330259917,1719214266610,-500.0,0.00019452,4]
[330259918,1719214266621,-3549.79,0.00019452,4]
[330259919,1719214266632,-6686.69,0.00019452,4]
[330259920,1719214266642,-500.0,0.00019452,4]
[330259921,1719214266652,-683.84,0.00019452,4]
[330259922,1719214266663,-3505.82,0.00019452,4]
[330259923,1719214266673,-500.0,0.00019452,4]
[330259924,1719214266683,-500.0,0.00019452,4]
[330259925,1719214266692,-4601.22,0.00019452,4]
[330259926,1719214266702,-500.0,0.00019452,4]
[330259927,1719214266712,-500.0,0.00019452,4]
[330259928,1719214266722,-151.0,0.00019452,2]
[330259929,1719214266732,-500.0,0.00019452,4]
[330259930,1719214266742,-3007.89,0.00019452,4]
[330259931,1719214266751,-5517.01,0.00019452,4]
[330259932,1719214266761,-500.0,0.00019452,4]
[330259933,1719214266773,-500.0,0.00019452,4]
[330259934,1719214266783,-3237.39,0.00019452,4]
[330259935,1719214266792,-500.0,0.00019452,4]
[330259936,1719214266802,-151.0,0.00019452,2]
[330259937,1719214266811,-151.0,0.00019452,2]
[330259938,1719214266820,-500.0,0.00019452,4]
[330259939,1719214267081,-500.0,0.00019452,4]
[330259940,1719214267092,-5108.38,0.00019452,4]
[330259941,1719214267101,-500.0,0.00019452,4]
[330259942,1719214267111,-151.0,0.00019452,2]
[330259943,1719214267121,-2162.86,0.00019452,4]
[330259944,1719214267131,-151.0,0.00019452,2]
[330259945,1719214267140,-500.0,0.00019452,4]
[330259946,1719214267149,-776.23,0.00019452,4]
[330259947,1719214267159,-500.0,0.00019452,4]
[330259948,1719214267168,-1479.77,0.00019452,4]
[330259949,1719214267177,-500.0,0.00019452,4]
[330259950,1719214267187,-500.0,0.00019452,4]
[330259951,1719214267196,-500.0,0.00019452,4]
[330259952,1719214267205,-822.04,0.00019452,4]
[330259953,1719214267215,-500.0,0.00019452,4]
[330259954,1719214267224,-3213.19,0.00019452,4]
[330259955,1719214267233,-500.0,0.00019452,4]
[330259956,1719214267243,-500.0,0.00019452,4]
[330259957,1719214267252,-500.0,0.00019452,4]
[330259958,1719214267261,-500.0,0.00019452,4]
[330259959,1719214267272,-151.0,0.00019452,2]
[330259960,1719214267282,-1437.16,0.00019452,4]
[330259961,1719214267291,-500.0,0.00019452,4]
[330259962,1719214267301,-500.0,0.00019452,4]
[330259963,1719214267311,-4077.0,0.00019452,4]
[330259964,1719214267320,-500.0,0.00019452,4]
[330259965,1719214267330,-500.0,0.00019452,4]
[330259966,1719214267340,-8580.64,0.00019452,4]
[330259967,1719214267349,-500.0,0.00019452,4]
[330259968,1719214267359,-500.0,0.00019452,4]
[330259969,1719214267369,-500.0,0.00019452,4]
[330259970,1719214267378,-500.0,0.00019452,4]
[330259971,1719214267388,-500.0,0.00019452,4]
[330259972,1719214267398,-522.29,0.00019452,4]
[330259973,1719214267407,-773.12,0.00019452,4]
[330259974,1719214267417,-1347.66,0.00019452,4]
[330259975,1719214267426,-151.0,0.00019452,2]
[330259976,1719214267436,-151.0,0.00019452,2]
[330259977,1719214267445,-151.0,0.00019452,2]
[330259978,1719214267455,-151.0,0.00019452,2]
[330259979,1719214267464,-500.0,0.00019452,4]
[330259980,1719214267474,-3845.4,0.00019452,4]
[330259981,1719214267484,-599.26,0.00019452,4]
[330259982,1719214267495,-520.44,0.00019452,4]
[330259983,1719214267504,-215.285216,0.00019452,2]
[330259984,1719214267515,-215.285216,0.00019452,2]
[330259985,1719214267526,-151.0,0.00019452,2]
[330259986,1719214267536,-151.0,0.00019452,2]
[330259987,1719214267546,-551.00514955,0.00019452,4]
[330259988,1719214267555,-151.680931,0.00019452,2]
[330259989,1719214267565,-653.28,0.00019452,4]
[330259990,1719214267575,-215.285216,0.00019452,2]
[330259991,1719214267585,-500.0,0.00019452,4]
[330259992,1719214267594,-215.285216,0.00019452,2]
[330259993,1719214267610,-153.311669,0.00019452,2]
[330259994,1719214267619,-500.0,0.00019452,4]
[330259995,1719214267629,-601.18,0.00019452,4]
[330259996,1719214267639,-4423.02,0.00019452,4]
[330259997,1719214267650,-158.001699,0.00019452,2]
[330259998,1719214267659,-500.0,0.00019452,4]
[330259999,1719214267668,-1302.14,0.00019452,4]
[330260000,1719214267678,-1510.55,0.00019452,4]
[330260001,1719214267688,-500.0,0.00019452,4]
[330260002,1719214267698,-500.0,0.00019452,4]
[330260003,1719214267707,-4691.32,0.00019452,4]
[330260004,1719214267717,-153.280353,0.00019452,2]
[330260005,1719214267726,-1862.57,0.00019452,4]
[330260006,1719214267735,-500.0,0.00019452,4]
[330260007,1719214267745,-500.0,0.00019452,4]
[330260008,1719214267754,-500.0,0.00019452,4]
[330260009,1719214267764,-502.4252497,0.00019452,4]
[330260010,1719214267776,-500.0,0.00019452,4]
[330260011,1719214267785,-500.0,0.00019452,4]
[330260012,1719214267794,-500.0,0.00019452,4]
[330260013,1719214267803,-500.0,0.00019452,4]
[330260014,1719214267813,-206.21,0.00019452,4]
[330260015,1719214267823,-3581.0,0.00019452,4]
[330260016,1719214267833,-4540.36,0.00019452,4]
[330260017,1719214267842,-647.91,0.00019452,4]
[330260018,1719214267852,-500.0,0.00019452,4]
[330260019,1719214267862,-3105.44,0.00019452,4]
[330260020,1719214267872,-158.541014,0.00019452,2]
[330260021,1719214267881,-775.75,0.00019452,4]
[330260022,1719214267891,-500.0,0.00019452,4]
[330260023,1719214267901,-500.0,0.00019452,4]
[330260024,1719214267911,-551.02,0.00019452,4]
[330260025,1719214267921,-500.0,0.00019452,4]
[330260026,1719214267931,-4542.28,0.00019452,4]
[330260027,1719214267940,-151.0,0.00019452,2]
[330260028,1719214267950,-500.0,0.00019452,4]
[330260029,1719214267959,-500.0,0.00019452,4]
[330260030,1719214267968,-1450.78,0.00019452,4]
[330260031,1719214267978,-500.0,0.00019452,4]
[330260032,1719214267988,-2168.61,0.00019452,4]
[330260033,1719214267997,-500.0,0.00019452,4]
[330260034,1719214268007,-500.0,0.00019452,4]
[330260035,1719214268017,-500.0,0.00019452,4]
[330260036,1719214268032,-2528.62,0.00019452,4]
[330260037,1719214268042,-151.0,0.00019452,2]
[330260038,1719214268051,-500.0,0.00019452,4]
[330260039,1719214268061,-500.0,0.00019452,4]
[330260040,1719214268071,-500.0,0.00019452,4]
[330260041,1719214268081,-500.0,0.00019452,2]
[330260042,1719214268090,-3511.4,0.00019452,4]
[330260043,1719214268100,-500.0,0.00019452,4]
[330260044,1719214268109,-500.0,0.00019452,4]
[330260045,1719214268119,-500.0,0.00019452,4]
[330260046,1719214268128,-663.3,0.00019452,4]
[330260047,1719214268138,-500.0,0.00019452,4]
[330260048,1719214268148,-500.0,0.00019452,4]
[330260049,1719214268157,-500.0,0.00019452,4]
[330260050,1719214268167,-5536.21,0.00019452,4]
[330260051,1719214268176,-500.0,0.00019452,4]
[330260052,1719214268186,-2051.83,0.00019452,4]
[330260053,1719214268196,-500.0,0.00019452,4]
[330260054,1719214268206,-584.38823264,0.00019452,4]
[330260055,1719214268215,-500.0,0.00019452,4]
[330260056,1719214268224,-3788.32,0.00019452,4]
[330260057,1719214268234,-500.0,0.00019452,4]
[330260058,1719214268244,-500.0,0.00019452,4]
[330260059,1719214268253,-500.0,0.00019452,4]
[330260060,1719214268263,-500.0,0.00019452,4]
[330260061,1719214268276,-500.0,0.00019452,4]
[330260062,1719214268285,-738.9,0.00019452,4]
[330260063,1719214268294,-635.92,0.00019452,4]
[330260064,1719214268304,-500.0,0.00019452,4]
[330260065,1719214268313,-500.0,0.00019452,4]
[330260066,1719214268322,-500.0,0.00019452,4]
[330260067,1719214268331,-500.0,0.00019452,4]
[330260068,1719214268341,-2983.25,0.00019452,4]
[330260069,1719214268350,-151.0,0.00019452,2]
[330260070,1719214268360,-500.0,0.00019452,4]
[330260071,1719214268370,-151.0,0.00019452,2]
[330260072,1719214268380,-189.255131,0.00019452,2]
[330260073,1719214268390,-946.91,0.00019452,4]
[330260074,1719214268400,-500.0,0.00019452,4]
[330260075,1719214268410,-189.255131,0.00019452,2]
[330260076,1719214268419,-3622.73,0.00019452,4]
[330260077,1719214268429,-500.0,0.00019452,4]
[330260078,1719214268439,-500.0,0.00019452,4]
[330260079,1719214268448,-2234.371524,0.00019452,2]
[330260080,1719214268458,-2234.371524,0.00019452,2]
[330260081,1719214268468,-318.18194755,0.00019464,2]
[330260082,1719214268478,-516.42631496,0.00019464,2]
[330260083,1719214268488,-2191.05602,0.0001953,2]
[330260084,1719214268498,-253.90432169,0.00019576,2]
[330260085,1719214268508,-2507.7317,0.00019626,2]
[330260086,1719214268521,-428.86463555,0.00019669,2]
[330260087,1719214268536,-5000.0,0.00019699,2]
[330260088,1719214268546,-996.28,0.000197,2]
[330260089,1719214268555,-318.18194755,0.00019715,2]
[330260090,1719214268565,-516.42631496,0.00019715,2]
[330260091,1719214268576,-155.0,0.00019725,2]
[330260092,1719214268585,-4454.52980697,0.00019725,2]
[330260093,1719214268594,-2535.82,0.00019725,4]
[330260094,1719214268605,-2535.82,0.00019725,4]
[330260095,1719214268615,-2535.82,0.00019725,4]
[330260096,1719214268628,-2535.82,0.00019725,4]
[330260097,1719214268637,-2535.82,0.00019725,4]
[330260098,1719214268647,-2535.82,0.00019725,4]
[330260099,1719214268656,-2535.82,0.00019725,4]
[330260100,1719214268666,-2535.82,0.00019725,4]
[330260101,1719214268676,-2535.82,0.00019725,4]
[330260102,1719214268686,-2535.82,0.00019725,4]
[330260103,1719214268696,-2535.82,0.00019725,4]
[330260104,1719214268706,-2535.82,0.00019725,4]
[330260105,1719214268716,-2535.84843064,0.00019725,4]
[330260106,1719214268725,-1518407.61037812,0.00019726,7]
[330260107,1719214268735,-151.0,0.00019726,2]
[330260108,1719214268744,-500.0,0.00019726,4]
[330260109,1719214268754,-500.0,0.00019726,4]
[330260110,1719214268771,-264.94,0.00019726,4]
[330260111,1719214268782,-153.72,0.00019726,4]
[330260112,1719214268791,-262.08,0.00019726,4]
[330260113,1719214268801,-500.0,0.00019726,4]
[330260114,1719214268811,-500.0,0.00019726,4]
[330260115,1719214268821,-500.0,0.00019726,4]
[330260116,1719214268831,-500.0,0.00019726,4]
[330260117,1719214268840,-151.0,0.00019726,2]
[330260118,1719214268851,-512.90128185,0.00019726,4]
[330260119,1719214268862,-500.0,0.00019726,4]
[330260120,1719214268872,-500.0,0.00019726,4]
[330260121,1719214268882,-500.0,0.00019726,4]
[330260122,1719214268892,-156.27864818,0.00019726,4]
[330260123,1719214268901,-500.0,0.00019726,4]
[330260124,1719214268911,-500.0,0.00019726,4]
[330260125,1719214268921,-500.0,0.00019726,4]
[330260126,1719214268930,-500.0,0.00019726,4]
[330260127,1719214268939,-500.0,0.00019726,4]
[330260128,1719214268949,-500.0,0.00019726,4]
[330260129,1719214268958,-500.0,0.00019726,4]
[330260130,1719214268968,-500.0,0.00019726,4]
[330260131,1719214268977,-500.0,0.00019726,4]
[330260132,1719214268986,-500.0,0.00019726,4]
[330260133,1719214268995,-500.0,0.00019726,4]
[330260134,1719214269004,-500.0,0.00019726,4]
[330260135,1719214269013,-500.0,0.00019726,4]
[330260136,1719214269026,-500.0,0.00019726,4]
[330260137,1719214269036,-500.0,0.00019726,4]
[330260138,1719214269046,-500.0,0.00019726,4]
[330260139,1719214269055,-500.0,0.00019726,4]
[330260140,1719214269066,-500.0,0.00019726,4]
[330260141,1719214269076,-500.0,0.00019726,4]
[330260142,1719214269085,-502.74603296,0.00019726,4]
[330260143,1719214269095,-500.0,0.00019726,4]
[330260144,1719214269104,-500.0,0.00019726,4]
[330260145,1719214269115,-500.0,0.00019726,4]
[330260146,1719214269124,-500.0,0.00019726,4]
[330260147,1719214269134,-500.0,0.00019726,4]
[330260148,1719214269144,-500.0,0.00019726,4]
[330260149,1719214269155,-500.0,0.00019726,4]
[330260150,1719214269164,-500.0,0.00019726,4]
[330260151,1719214269174,-500.0,0.00019726,4]
[330260152,1719214269183,-500.0,0.00019726,4]
[330260153,1719214269193,-500.0,0.00019726,4]
[330260154,1719214269202,-500.0,0.00019726,4]
[330260155,1719214269212,-238.0750902,0.00019726,4]
[330260156,1719214269222,-500.0,0.00019726,4]
[330260157,1719214269232,-500.0,0.00019726,4]
[330260158,1719214269242,-500.0,0.00019726,4]
[330260159,1719214269252,-500.0,0.00019726,4]
[330260160,1719214269263,-500.0,0.00019726,4]
[330260161,1719214269276,-500.0,0.00019726,4]
[330260162,1719214269286,-500.0,0.00019726,4]
[330260163,1719214269296,-500.0,0.00019726,4]
[330260164,1719214269306,-500.0,0.00019726,4]
[330260165,1719214269316,-500.0,0.00019726,4]
[330260166,1719214269326,-500.0,0.00019726,4]
[330260167,1719214269336,-500.0,0.00019726,4]
[330260168,1719214269346,-500.0,0.00019726,4]
[330260169,1719214269357,-500.0,0.00019726,4]
[330260170,1719214269367,-500.0,0.00019726,4]
[330260171,1719214269377,-500.0,0.00019726,4]
[330260172,1719214269386,-500.0,0.00019726,4]
[330260173,1719214269396,-500.0,0.00019726,4]
[330260174,1719214269406,-500.0,0.00019726,4]
[330260175,1719214269490,-500.0,0.00019726,4]
[330260176,1719214269500,-500.0,0.00019726,4]
[330260177,1719214269510,-500.0,0.00019726,4]
[330260178,1719214269523,-500.0,0.00019726,4]
[330260179,1719214269533,-500.0,0.00019726,4]
[330260180,1719214269542,-500.0,0.00019726,4]
[330260181,1719214269551,-500.0,0.00019726,4]
[330260182,1719214269561,-500.0,0.00019726,4]
[330260183,1719214269570,-500.0,0.00019726,4]
[330260184,1719214269580,-500.0,0.00019726,4]
[330260185,1719214269589,-500.0,0.00019726,4]
[330260186,1719214269599,-500.0,0.00019726,4]
[330260187,1719214269613,-500.0,0.00019726,4]
[330260188,1719214269623,-500.0,0.00019726,4]
[330260189,1719214269632,-500.0,0.00019726,4]
[330260190,1719214269643,-500.0,0.00019726,4]
[330260191,1719214269653,-500.0,0.00019726,4]
[330260192,1719214269663,-500.0,0.00019726,4]
[330260193,1719214269672,-500.0,0.00019726,4]
[330260194,1719214269681,-152.889192,0.00019726,2]
[330260195,1719214269692,-151.0,0.00019726,2]
[330260196,1719214269701,-500.0,0.00019726,4]
[330260197,1719214269711,-500.0,0.00019726,4]
[330260198,1719214269720,-500.0,0.00019726,4]
[330260199,1719214269729,-500.0,0.00019726,4]
[330260200,1719214269739,-500.0,0.00019726,4]
[330260201,1719214269747,-500.0,0.00019726,4]
[330260202,1719214269756,-500.0,0.00019726,4]
[330260203,1719214269766,-500.0,0.00019726,4]
[330260204,1719214269777,-500.0,0.00019726,4]
[330260205,1719214269787,-500.0,0.00019726,4]
[330260206,1719214269795,-500.0,0.00019726,4]
[330260207,1719214269805,-151.0,0.00019726,2]
[330260208,1719214269814,-500.0,0.00019726,4]
[330260209,1719214269824,-500.0,0.00019726,4]
[330260210,1719214269834,-500.0,0.00019726,4]
[330260211,1719214269843,-500.0,0.00019726,4]
[330260212,1719214269852,-500.0,0.00019726,4]
[330260213,1719214269862,-500.0,0.00019726,4]
[330260214,1719214269871,-500.0,0.00019726,4]
[330260215,1719214269880,-500.0,0.00019726,4]
[330260216,1719214269889,-500.0,0.00019726,4]
[330260217,1719214269898,-500.0,0.00019726,4]
[330260218,1719214269907,-500.0,0.00019726,4]
[330260219,1719214269917,-500.0,0.00019726,4]
[330260220,1719214269926,-500.0,0.00019726,4]
[330260221,1719214269935,-500.0,0.00019726,4]
[330260222,1719214269944,-500.0,0.00019726,4]
[330260223,1719214269953,-500.0,0.00019726,4]
[330260224,1719214269963,-500.0,0.00019726,4]
[330260225,1719214269971,-500.0,0.00019726,4]
[330260226,1719214269980,-500.0,0.00019726,4]
[330260227,1719214269989,-500.0,0.00019726,2]
[330260228,1719214269998,-500.0,0.00019726,4]
[330260229,1719214270007,-500.0,0.00019726,4]
[330260230,1719214270017,-500.0,0.00019726,4]
[330260231,1719214270028,-500.0,0.00019726,4]
[330260232,1719214270037,-500.0,0.00019726,4]
[330260233,1719214270047,-500.0,0.00019726,4]
[330260234,1719214270056,-638.22,0.00019726,4]
[330260235,1719214270065,-500.0,0.00019726,4]
[330260236,1719214270074,-500.0,0.00019726,4]
[330260237,1719214270083,-500.0,0.00019726,4]
[330260238,1719214270092,-500.0,0.00019726,4]
[330260239,1719214270101,-500.0,0.00019726,4]
[330260240,1719214270110,-500.0,0.00019726,4]
[330260241,1719214270118,-500.0,0.00019726,4]
[330260242,1719214270127,-500.0,0.00019726,4]
[330260243,1719214270136,-153.957275,0.00019726,2]
[330260244,1719214270146,-500.0,0.00019726,4]
[330260245,1719214270155,-500.0,0.00019726,4]
[330260246,1719214270164,-500.0,0.00019726,4]
[330260247,1719214270173,-500.0,0.00019726,4]
[330260248,1719214270182,-500.0,0.00019726,4]
[330260249,1719214270191,-500.0,0.00019726,4]
[330260250,1719214270200,-500.0,0.00019726,4]
[330260251,1719214270209,-500.0,0.00019726,4]
[330260252,1719214270218,-500.0,0.00019726,4]
[330260253,1719214270228,-500.0,0.00019726,4]
[330260254,1719214270237,-500.0,0.00019726,4]
[330260255,1719214270246,-501.95904878,0.00019726,4]
[330260256,1719214270255,-500.0,0.00019726,4]
[330260257,1719214270264,-500.0,0.00019726,4]
[330260258,1719214270276,-500.0,0.00019726,4]
[330260259,1719214270285,-500.0,0.00019726,4]
[330260260,1719214270294,-500.0,0.00019726,4]
[330260261,1719214270302,-500.0,0.00019726,4]
[330260262,1719214270311,-500.0,0.00019726,4]
[330260263,1719214270321,-500.0,0.00019726,4]
[330260264,1719214270330,-500.0,0.00019726,4]
[330260265,1719214270339,-500.0,0.00019726,4]
[330260266,1719214270348,-500.0,0.00019726,4]
[330260267,1719214270357,-153.342797,0.00019726,2]
[330260268,1719214270367,-500.0,0.00019726,4]
[330260269,1719214270376,-500.0,0.00019726,4]
[330260270,1719214270385,-500.0,0.00019726,4]
[330260271,1719214270394,-500.0,0.00019726,4]
[330260272,1719214270404,-500.0,0.00019726,4]
[330260273,1719214270413,-325.71347524,0.00019726,4]
[330260274,1719214270422,-168.56,0.00019726,4]
[330260275,1719214270431,-500.0,0.00019726,4]
[330260276,1719214270440,-590.32,0.00019726,4]
[330260277,1719214270448,-500.0,0.00019726,4]
[330260278,1719214270457,-151.0,0.00019726,2]